fUSD/lending_fUSD_20260217
["ID","MTS","AMOUNT","RATE_DAILY","PERIOD"]
[405858559,1771366246007,-1546.47,0.00013698,2]
[405858560,1771366246016,-1546.47,0.00013698,2]
[405858561,1771366246026,-1546.47,0.00013698,2]
[405858562,1771366246036,-1546.47,0.00013698,2]
[405858563,1771366246047,-1546.47,0.00013698,2]
[405858564,1771366246058,-1546.47,0.00013698,2]
[405858565,1771366246067,-1546.47,0.00013698,2]
[405858566,1771366246079,-1546.47,0.00013698,2]
[405858567,1771366246089,-1546.47,0.00013698,2]
[405858568,1771366246099,-1546.47,0.00013698,2]
[405858569,1771366246109,-1546.47,0.00013698,2]
[405858570,1771366246119,-1546.47,0.00013698,2]
[405858571,1771366246130,-1546.47,0.00013698,2]
[405858572,1771366246141,-1546.47,0.00013698,2]
[405858573,1771366246151,-516.5,0.00013698,2]
[405858574,1771366246162,-516.5,0.00013698,2]
[405858575,1771366246172,-516.5,0.00013698,2]
[405858576,1771366246182,-516.5,0.00013698,2]
[405858577,1771366246192,-516.5,0.00013698,2]
[405858578,1771366246202,-516.5,0.00013698,2]
[405858579,1771366246213,-516.5,0.00013698,2]
[405858580,1771366246223,-516.5,0.00013698,2]
[405858581,1771366246235,-516.5,0.00013698,2]
[405858582,1771366246246,-516.5,0.00013698,2]
[405858583,1771366246256,-516.5,0.00013698,2]
[405858584,1771366246267,-516.5,0.00013698,2]
[405858585,1771366246277,-516.5,0.00013698,2]
[405858586,1771366246287,-516.5,0.00013698,2]
[405858587,1771366246298,-516.5,0.00013698,2]
[405858588,1771366246308,-516.5,0.00013698,2]
[405858589,1771366246318,-500.0,0.00013698,2]
[405858590,1771366246329,-516.5,0.00013698,2]
[405858591,1771366246339,-500.0,0.00013698,2]
[405858592,1771366246349,-516.5,0.00013698,2]
[405858593,1771366246359,-500.0,0.00013698,2]
[405858594,1771366246369,-500.0,0.00013698,2]
[405858595,1771366246380,-500.0,0.00013698,2]
[405858596,1771366246391,-494.24526323,0.00013698,2]
[405858597,1771366246401,-500.0,0.00013698,2]
[405858598,1771366246411,-500.0,0.00013698,2]
[405858599,1771366246421,-500.0,0.00013698,2]
[405858600,1771366246431,-191.17661539,0.00013698,2]
[405858601,1771366246441,-4479.21,0.00013699,2]
[405858602,1771366246451,-712.99,0.00013699,2]
[405858603,1771366246463,-173.57638878,0.00013699,2]
[405858604,1771366246473,-160.0,0.00013699,2]
[405858605,1771366246483,-151.02878078,0.00013699,2]
[405858606,1771366246493,-545.12,0.000137,2]
[405858607,1771366246504,-545.12,0.000137,2]
[405858608,1771366246514,-545.12,0.000137,2]
[405858609,1771366246524,-545.12,0.000137,2]
[405858610,1771366246534,-545.12,0.000137,2]
[405858611,1771366246545,-1613.0,0.00013709,2]
[405858612,1771366246556,-2129.0,0.00013715,2]
[405858613,1771366246566,-43669.07100326,0.00013717,2]
[405858614,1771366246577,-2000.0,0.00013816,2]
[405858615,1771366246588,-2000.0,0.00013816,2]
[405858616,1771366246599,-503.8182606,0.00013816,2]
[405858617,1771366246610,-2000.0,0.00013816,2]
[405858618,1771366246620,-2000.0,0.00013816,2]
[405858619,1771366246631,-2000.0,0.00013816,2]
[405858620,1771366246642,-226.6191256,0.00013816,2]
[405858621,1771366246653,-2000.0,0.00013816,2]
[405858622,1771366246663,-1013.23,0.00013817,2]
[405858623,1771366246673,-546.97,0.00013817,2]
[405858624,1771366246683,-1479.1,0.00013817,2]
[405858625,1771366247021,-1546.47,0.00013817,2]
[405858626,1771366247032,-500.0,0.00013873,2]
[405858627,1771366247044,-335.00019172,0.00013873,2]
[405858628,1771366247054,-500.0,0.00013873,2]
[405858629,1771366247064,-500.0,0.00013873,2]
[405858630,1771366247077,-500.0,0.00013873,2]
[405858631,1771366247086,-500.0,0.00013873,2]
[405858632,1771366247096,-500.0,0.00013873,2]
[405858633,1771366247106,-500.0,0.00013873,2]
[405858634,1771366247116,-500.0,0.00013873,2]
[405858635,1771366247126,-500.0,0.00013873,2]
[405858636,1771366247135,-500.0,0.00013873,2]
[405858637,1771366247145,-500.0,0.00013873,2]
[405858638,1771366247155,-500.0,0.00013873,2]
[405858639,1771366247165,-161.87499248,0.00013873,2]
[405858640,1771366247175,-525.66819458,0.00013873,2]
[405858641,1771366247185,-500.0,0.00013873,2]
[405858642,1771366247195,-505.14943602,0.00013873,2]
[405858643,1771366247206,-500.0,0.00013873,2]
[405858644,1771366247216,-163.87964352,0.00013873,2]
[405858645,1771366247226,-500.29634492,0.00013873,2]
[405858646,1771366247236,-500.0,0.00013873,2]
[405858647,1771366247246,-500.0,0.00013873,2]
[405858648,1771366247256,-500.0,0.00013873,2]
[405858649,1771366247266,-161.95965132,0.00013873,2]
[405858650,1771366247277,-501.23450591,0.00013873,2]
[405858651,1771366247287,-500.0,0.00013873,2]
[405858652,1771366247296,-500.93096914,0.00013873,2]
[405858653,1771366247307,-436.04334629,0.00013873,2]
[405858654,1771366247316,-500.0,0.00013873,2]
[405858655,1771366247327,-500.0,0.00013873,2]
[405858656,1771366247337,-160.29464371,0.00013873,2]
[405858657,1771366247348,-514.27467488,0.00013873,2]
[405858658,1771366247358,-161.02829907,0.00013873,2]
[405858659,1771366247368,-500.0,0.00013873,2]
[405858660,1771366247378,-500.0,0.00013873,2]
[405858661,1771366247389,-500.0,0.00013873,2]
[405858662,1771366247399,-500.0,0.00013873,2]
[405858663,1771366247410,-500.0,0.00013873,2]
[405858664,1771366247420,-561.11210647,0.00013873,2]
[405858665,1771366247430,-500.0,0.00013873,2]
[405858666,1771366247439,-523.64780308,0.00013873,2]
[405858667,1771366247449,-500.0,0.00013873,2]
[405858668,1771366247459,-162.40112722,0.00013873,2]
[405858669,1771366247469,-377.76526068,0.00013873,2]
[405858670,1771366247479,-500.0,0.00013873,2]
[405858671,1771366247489,-569.45122683,0.00013873,2]
[405858672,1771366247499,-285.23122629,0.00013873,2]
[405858673,1771366247510,-501.43225284,0.00013873,2]
[405858674,1771366247520,-500.0,0.00013873,2]
[405858675,1771366247530,-501.14207764,0.00013873,2]
[405858676,1771366247540,-170.20434449,0.00013873,2]
[405858677,1771366247550,-500.0,0.00013873,2]
[405858678,1771366247559,-500.0,0.00013873,2]
[405858679,1771366247570,-503.17452108,0.00013873,2]
[405858680,1771366247580,-500.0,0.00013873,2]
[405858681,1771366247590,-500.0,0.00013873,2]
[405858682,1771366247600,-500.0,0.00013873,2]
[405858683,1771366247610,-500.0,0.00013873,2]
[405858684,1771366247620,-500.0,0.00013873,2]
[405858685,1771366247630,-550.905089,0.00013873,2]
[405858686,1771366247640,-597.93872342,0.00013873,2]
[405858687,1771366247650,-500.0,0.00013873,2]
[405858688,1771366247660,-500.0,0.00013873,2]
[405858689,1771366247670,-500.0,0.00013873,2]
[405858690,1771366247680,-68837.47701454,0.00014311,2]
[405858691,1771366247690,-2500.0,0.00014364,2]
[405858692,1771366247700,-2500.0,0.00014364,2]
[405858693,1771366247710,-2238.87048767,0.00014364,2]
[405858694,1771366247720,-691.88472966,0.00014364,2]
[405858695,1771366247731,-1506.4295813,0.00014364,2]
[405858696,1771366247740,-2500.0,0.00014364,2]
[405858697,1771366247750,-649.58,0.00014383,2]
[405858698,1771366247760,-1139.08,0.00014383,2]
[405858699,1771366247769,-500.0,0.00014383,2]
[405858700,1771366247779,-516.5,0.00014383,2]
[405858701,1771366247789,-4479.21,0.00014384,2]
[405858702,1771366247800,-502.22718587,0.00014421,2]
[405858703,1771366247809,-1000.0,0.00014421,2]
[405858704,1771366247818,-1001.35605949,0.00014421,2]
[405858705,1771366247829,-1000.0,0.00014421,2]
[405858706,1771366247838,-504.09468333,0.00014421,2]
[405858707,1771366247848,-1000.0,0.00014421,2]
[405858708,1771366247859,-1009.85751715,0.00014421,2]
[405858709,1771366247868,-1000.0,0.00014421,2]
[405858710,1771366247878,-1000.0,0.00014421,2]
[405858711,1771366247888,-501.86536618,0.00014421,2]
[405858712,1771366247899,-1000.0,0.00014421,2]
[405858713,1771366247909,-1000.0,0.00014421,2]
[405858714,1771366247920,-504.64635869,0.00014421,2]
[405858715,1771366247929,-1002.86775924,0.00014421,2]
[405858716,1771366247940,-1000.0,0.00014421,2]
[405858717,1771366247950,-565.44208777,0.00014421,2]
[405858718,1771366247960,-651.60051968,0.00014421,2]
[405858719,1771366247970,-1000.0,0.00014421,2]
[405858720,1771366247980,-1000.0,0.00014421,2]
[405858721,1771366247991,-502.68727614,0.00014421,2]
[405858722,1771366248003,-1000.0,0.00014421,2]
[405858723,1771366248014,-1000.0,0.00014421,2]
[405858724,1771366248023,-1000.0,0.00014421,2]
[405858725,1771366248033,-1000.0,0.00014421,2]
[405858726,1771366248043,-1009.6821238,0.00014421,2]
[405858727,1771366248054,-895.81638304,0.00014421,2]
[405858728,1771366248064,-1000.0,0.00014421,2]
[405858729,1771366248074,-1000.0,0.00014421,2]
[405858730,1771366248084,-1000.0,0.00014421,2]
[405858731,1771366248094,-502.80271569,0.00014421,2]
[405858732,1771366248104,-1000.0,0.00014421,2]
[405858733,1771366248114,-1000.0,0.00014421,2]
[405858734,1771366248124,-1000.0,0.00014421,2]
[405858735,1771366248134,-1000.0,0.00014421,2]
[405858736,1771366248143,-1000.0,0.00014421,2]
[405858737,1771366248153,-1000.0,0.00014421,2]
[405858738,1771366248163,-151.0,0.00014695,4]
[405858739,1771366248172,-1000.0,0.00014869,2]
[405858740,1771366248182,-176.05451458,0.000149,2]
[405858741,1771366248191,-176.05451457,0.000149,2]
[405858742,1771366248201,-176.05451457,0.000149,2]
[405858743,1771366248212,-3000.0,0.00014912,2]
[405858744,1771366248222,-1360.79622624,0.00014912,2]
[405858745,1771366248231,-2453.91707801,0.00014912,2]
[405858746,1771366248241,-1500.0,0.00014968,2]
[405858747,1771366248250,-1000.0,0.00014968,2]
[405858748,1771366248261,-1500.0,0.00014968,2]
[405858749,1771366248270,-504.47861685,0.00014968,2]
[405858750,1771366248280,-1500.0,0.00014968,2]
[405858751,1771366248290,-1500.0,0.00014968,2]
[405858752,1771366248300,-1500.0,0.00014968,2]
[405858753,1771366248309,-1500.0,0.00014968,2]
[405858754,1771366248319,-1597.03636758,0.00014968,2]
[405858755,1771366248330,-1097.87159044,0.00014968,2]
[405858756,1771366248340,-395.07222913,0.00014968,2]
[405858757,1771366248350,-1000.0,0.00014968,2]
[405858758,1771366248359,-1500.0,0.00014968,2]
[405858759,1771366248369,-501.69367829,0.00014968,2]
[405858760,1771366248378,-1500.0,0.00014968,2]
[405858761,1771366248388,-1500.0,0.00014968,2]
[405858762,1771366248398,-1512.37454404,0.00014968,2]
[405858763,1771366248408,-1500.0,0.00014968,2]
[405858764,1771366248418,-505.49608217,0.00014968,2]
[405858765,1771366248428,-1500.0,0.00014968,2]
[405858766,1771366248438,-803.51620924,0.00014968,2]
[405858767,1771366248447,-1500.0,0.00014968,2]
[405858768,1771366248457,-1500.0,0.00014968,2]
[405858769,1771366248467,-271.46,0.00014985,2]
[405858770,1771366248478,-171.31028089,0.00015,5]
[405858771,1771366248488,-1013.23,0.00015068,2]
[405858772,1771366248498,-1013.23,0.00015068,2]
[405858773,1771366248508,-1013.23,0.00015068,2]
[405858774,1771366248518,-1013.23,0.00015068,2]
[405858775,1771366248528,-1013.32589873,0.00015068,2]
[405858776,1771366248537,-546.97,0.00015068,2]
[405858777,1771366248547,-546.97,0.00015068,2]
[405858778,1771366248557,-546.97,0.00015068,2]
[405858779,1771366248567,-546.97,0.00015068,2]
[405858780,1771366248577,-547.09394166,0.00015068,2]
[405858781,1771366248587,-1479.1,0.00015068,2]
[405858782,1771366248597,-1479.1,0.00015068,2]
[405858783,1771366248607,-1479.1,0.00015068,2]
[405858784,1771366248617,-1479.1,0.00015068,2]
[405858785,1771366248627,-1479.19350963,0.00015068,2]
[405858786,1771366248636,-1546.47,0.00015068,2]
[405858787,1771366248646,-1546.47,0.00015068,2]
[405858788,1771366248656,-1546.47,0.00015068,2]
[405858789,1771366248666,-1546.47,0.00015068,2]
[405858790,1771366248676,-1546.51311819,0.00015068,2]
[405858791,1771366248685,-4479.21,0.00015068,2]
[405858792,1771366248695,-2258.0,0.0001508,2]
[405858793,1771366248706,-3620.0,0.00015086,2]
[405858794,1771366248716,-68837.47701454,0.00015277,2]
[405858795,1771366248726,-298.72,0.00015377,2]
[405858796,1771366248735,-243.95,0.0001546,2]
[405858797,1771366248745,-3500.0,0.0001546,2]
[405858798,1771366248755,-187.96,0.00015491,2]
[405858799,1771366248765,-500.0,0.00015516,2]
[405858800,1771366248775,-2000.0,0.00015516,2]
[405858801,1771366248785,-360.43974274,0.00015516,2]
[405858802,1771366248795,-2000.0,0.00015516,2]
[405858803,1771366248805,-1120.78233815,0.00015516,2]
[405858804,1771366248815,-2000.0,0.00015516,2]
[405858805,1771366248825,-386.21895781,0.00015516,2]
[405858806,1771366248835,-2000.0,0.00015516,2]
[405858807,1771366248846,-1219.64567907,0.00015516,2]
[405858808,1771366248856,-2000.0,0.00015516,2]
[405858809,1771366248865,-2000.0,0.00015516,2]
[405858810,1771366248875,-1929.20363046,0.00015516,2]
[405858811,1771366248885,-158.35387756,0.00015516,2]
[405858812,1771366248895,-4479.21,0.00015753,2]
[405858813,1771366248904,-1000.0,0.00015829,2]
[405858814,1771366248914,-1000.0,0.00015829,2]
[405858815,1771366248925,-1000.0,0.00015829,2]
[405858816,1771366248935,-1000.0,0.00015829,2]
[405858817,1771366248944,-1000.0,0.00015829,2]
[405858818,1771366248955,-1000.0,0.00015829,2]
[405858819,1771366248964,-1000.0,0.00015829,2]
[405858820,1771366248975,-1000.0,0.00015829,2]
[405858821,1771366248984,-1000.0,0.00015829,2]
[405858822,1771366248995,-649.58,0.00015857,2]
[405858823,1771366249008,-649.58,0.00015857,2]
[405858824,1771366249018,-649.58,0.00015857,2]
[405858825,1771366249028,-649.58,0.00015857,2]
[405858826,1771366249039,-649.74,0.00015857,2]
[405858827,1771366249049,-1139.08,0.00015857,2]
[405858828,1771366249058,-1139.08,0.00015857,2]
[405858829,1771366249068,-1139.08,0.00015857,2]
[405858830,1771366249081,-1139.08,0.00015857,2]
[405858831,1771366249091,-1139.2,0.00015857,2]
[405858832,1771366249101,-500.0,0.00015857,2]
[405858833,1771366249110,-500.0,0.00015857,2]
[405858834,1771366249120,-500.0,0.00015857,2]
[405858835,1771366249130,-383.99953744,0.00015857,2]
[405858836,1771366249139,-516.5,0.00015857,2]
[405858837,1771366249149,-516.5,0.00015857,2]
[405858838,1771366249158,-516.5,0.00015857,2]
[405858839,1771366249168,-516.5,0.00015857,2]
[405858840,1771366249178,-516.63,0.00015857,2]
[405858841,1771366249187,-600.0,0.000159,5]
[405858842,1771366249197,-5000.0,0.0001596,2]
[405858843,1771366249207,-160.0,0.00016,3]
[405858844,1771366249216,-173.57638878,0.00016,3]
[405858845,1771366249226,-276.734435,0.00016,2]
[405858846,1771366249235,-2000.0,0.00016,2]
[405858847,1771366249245,-1494.73225771,0.00016008,2]
[405858848,1771366249255,-2500.0,0.00016064,2]
[405858849,1771366249264,-960.3517219,0.00016064,2]
[405858850,1771366249281,-1007.7222609,0.00016064,2]
[405858851,1771366249291,-2500.0,0.00016064,2]
[405858852,1771366249301,-1510.33829166,0.00016064,2]
[405858853,1771366249310,-2500.0,0.00016064,2]
[405858854,1771366249320,-2000.0,0.00016082,2]
[405858855,1771366249330,-9999.99,0.00016116,2]
[405858856,1771366249340,-177.3195449,0.00016141,2]
[405858857,1771366249350,-150.0,0.000162,2]
[405858858,1771366249360,-68837.47701454,0.00016243,2]
[405858859,1771366249368,-1000.0,0.00016283,7]
[405858860,1771366249378,-15296.93137855,0.00016299,2]
[405858861,1771366249388,-500.0,0.00016356,2]
[405858862,1771366249398,-500.0,0.00016356,2]
[405858863,1771366249407,-160.0,0.000164,2]
[405858864,1771366249417,-596.47581986,0.00016434,2]
[405858865,1771366249426,-2789.9,0.00016438,2]
[405858866,1771366249535,-887.51,0.00016438,2]
[405858867,1771366249544,-2378.0,0.00016438,2]
[405858868,1771366249554,-151.02975848,0.00016438,2]
[405858869,1771366249563,-4479.21,0.00016438,2]
[405858870,1771366249572,-2378.0,0.00016493,2]
[405858871,1771366249581,-150.0,0.000165,2]
[405858872,1771366249591,-2378.0,0.00016548,2]
[405858873,1771366249600,-404.497183,0.00016555,7]
[405858874,1771366249609,-3162.0,0.00016588,2]
[405858875,1771366249619,-3632.0,0.00016593,2]
[405858876,1771366249629,-2378.0,0.00016602,2]
[405858877,1771366249638,-1035.74923491,0.00016612,2]
[405858878,1771366249648,-457.49810709,0.00016612,2]
[405858879,1771366249657,-3000.0,0.00016612,2]
[405858880,1771366249666,-2378.0,0.00016657,2]
[405858881,1771366249675,-1088.37215301,0.00016663,2]
[405858882,1771366249684,-2378.0,0.00016712,2]
[405858883,1771366249693,-2378.0,0.00016767,2]
[405858884,1771366249702,-200.0,0.00016792,2]
[405858885,1771366249711,-150.0,0.000168,2]
[405858886,1771366249721,-484.95335888,0.00016812,2]
[405858887,1771366249730,-2378.0,0.00016822,2]
[405858888,1771366249739,-2378.0,0.00016876,2]
[405858889,1771366249748,-2378.0,0.00016931,2]
[405858890,1771366249758,-2378.0,0.00016986,2]
[405858891,1771366249767,-2000.0,0.00017,2]
[405858892,1771366249777,-2378.0,0.00017041,2]
[405858893,1771366249787,-1000.0,0.00017045,2]
[405858894,1771366249796,-851.03293945,0.00017048,2]
[405858895,1771366249806,-1000.0,0.00017066,2]
[405858896,1771366249816,-1000.0,0.00017074,2]
[405858897,1771366249825,-1000.0,0.00017084,2]
[405858898,1771366249835,-2378.0,0.00017096,2]
[405858899,1771366249844,-1751.06105486,0.00017096,2]
[405858900,1771366249854,-500.0,0.00017099,2]
[405858901,1771366249864,-500.0,0.00017099,2]
[405858902,1771366249873,-500.0,0.00017099,2]
[405858903,1771366249883,-500.0,0.00017099,2]
[405858904,1771366249892,-500.0,0.00017099,2]
[405858905,1771366249902,-500.0,0.00017099,2]
[405858906,1771366249911,-500.0,0.00017099,2]
[405858907,1771366249921,-500.0,0.00017099,2]
[405858908,1771366249930,-500.0,0.00017099,2]
[405858909,1771366249939,-500.0,0.00017099,2]
[405858910,1771366249949,-500.0,0.00017099,2]
[405858911,1771366249958,-500.0,0.00017099,2]
[405858912,1771366249968,-500.0,0.00017099,2]
[405858913,1771366249977,-500.0,0.00017099,2]
[405858914,1771366249987,-500.0,0.00017099,2]
[405858915,1771366249997,-500.0,0.00017099,2]
[405858916,1771366250010,-500.0,0.00017099,2]
[405858917,1771366250019,-500.0,0.00017099,2]
[405858918,1771366250029,-500.0,0.00017099,2]
[405858919,1771366250038,-500.0,0.00017099,2]
[405858920,1771366250049,-151.0,0.00017099,2]
[405858921,1771366250058,-156.587,0.00017099,2]
[405858922,1771366250069,-162.380719,0.00017099,2]
[405858923,1771366250078,-159.19814613,0.00017099,2]
[405858924,1771366250088,-277.35679052,0.00017099,2]
[405858925,1771366250098,-150.0,0.000171,2]
[405858926,1771366250107,-820.0,0.000171,2]
[405858927,1771366250116,-196837.22809,0.000171,2]
[405858928,1771366250126,-1000.0,0.00017103,2]
[405858929,1771366250135,-1000.0,0.00017104,2]
[405858930,1771366250144,-1000.0,0.00017106,2]
[405858931,1771366250154,-1000.0,0.00017111,2]
[405858932,1771366250163,-168.0,0.00017135,2]
[405858933,1771366250172,-2378.0,0.0001715,2]
[405858934,1771366250182,-1740.67806815,0.0001716,2]
[405858935,1771366250191,-1000.0,0.00017167,2]
[405858936,1771366250200,-1000.0,0.00017168,2]
[405858937,1771366250210,-1751.06105486,0.00017178,2]
[405858938,1771366250219,-1000.0,0.00017188,2]
[405858939,1771366250229,-2378.0,0.00017205,2]
[405858940,1771366250238,-68837.47701454,0.00017209,2]
[405858941,1771366250248,-1000.0,0.00017214,2]
[405858942,1771366250257,-1000.0,0.00017227,2]
[405858943,1771366250267,-1751.06105486,0.00017233,2]
[405858944,1771366250276,-1000.0,0.00017236,2]
[405858945,1771366250286,-2378.0,0.0001726,2]
[405858946,1771366250295,-1000.0,0.0001726,2]
[405858947,1771366250305,-1000.0,0.00017263,2]
[405858948,1771366250314,-1000.0,0.00017309,2]
[405858949,1771366250324,-2378.0,0.00017315,2]
[405858950,1771366250333,-1751.06105486,0.00017315,2]
[405858951,1771366250343,-1000.0,0.00017327,2]
[405858952,1771366250352,-1000.0,0.00017338,2]
[405858953,1771366250361,-1000.0,0.00017354,2]
[405858954,1771366250371,-165.96,0.00017356,2]
[405858955,1771366250380,-1000.0,0.00017359,2]
[405858956,1771366250390,-2378.0,0.0001737,2]
[405858957,1771366250399,-1751.06105486,0.0001737,2]
[405858958,1771366250409,-203.29,0.00017377,2]
[405858959,1771366250418,-1000.0,0.00017381,2]
[405858960,1771366250427,-1000.0,0.00017389,2]
[405858961,1771366250436,-1000.0,0.00017394,2]
[405858962,1771366250446,-165.96,0.00017397,2]
[405858963,1771366250455,-150.0,0.000174,2]
[405858964,1771366250464,-150.0,0.00017407,2]
[405858965,1771366250473,-150.0,0.00017413,2]
[405858966,1771366250483,-200.0,0.00017413,2]
[405858967,1771366250492,-197.764,0.00017413,2]
[405858968,1771366250501,-250.0,0.00017413,2]
[405858969,1771366250511,-231.713,0.00017413,2]
[405858970,1771366250522,-275.559,0.00017413,2]
[405858971,1771366250531,-160.03,0.00017413,2]
[405858972,1771366250540,-250.0,0.00017413,2]
[405858973,1771366250549,-192.151,0.00017413,2]
[405858974,1771366250559,-164.867,0.00017413,2]
[405858975,1771366250569,-213.324,0.00017413,2]
[405858976,1771366250578,-250.0,0.00017413,2]
[405858977,1771366250587,-174.0,0.00017413,2]
[405858978,1771366250597,-234.143,0.00017413,2]
[405858979,1771366250606,-162.702,0.00017413,2]
[405858980,1771366250615,-1338.0,0.00017413,2]
[405858981,1771366250625,-619.543,0.00017413,2]
[405858982,1771366250634,-3540.659,0.00017413,2]
[405858983,1771366250643,-1164.0,0.00017413,2]
[405858984,1771366250653,-150.248,0.00017413,2]
[405858985,1771366250663,-1275.0,0.00017413,2]
[405858986,1771366250673,-1220.627,0.00017413,2]
[405858987,1771366250683,-418.979,0.00017413,2]
[405858988,1771366250693,-5973.0,0.00017413,2]
[405858989,1771366250702,-919.0,0.00017413,2]
[405858990,1771366250711,-150.0,0.00017419,2]
[405858991,1771366250720,-2378.0,0.00017424,2]
[405858992,1771366250730,-1000.0,0.00017428,2]
[405858993,1771366250740,-203.28,0.00017438,2]
[405858994,1771366250750,-165.95732778,0.00017438,2]
[405858995,1771366250760,-350.0,0.00017448,2]
[405858996,1771366250769,-2000.0,0.00017452,7]
[405858997,1771366250779,-1751.06105486,0.00017452,2]
[405858998,1771366250788,-156.63,0.00017453,2]
[405858999,1771366250798,-150.0,0.0001747,2]
[405859000,1771366250807,-1000.0,0.00017477,2]
[405859001,1771366250817,-2378.0,0.00017479,2]
[405859002,1771366250826,-1000.0,0.00017481,2]
[405859003,1771366250836,-1000.0,0.00017491,2]
[405859004,1771366250846,-2000.0,0.000175,2]
[405859005,1771366250856,-168.0,0.00017504,2]
[405859006,1771366250866,-1751.06105486,0.00017507,2]
[405859007,1771366250875,-156.63,0.00017517,2]
[405859008,1771366250885,-1000.0,0.00017523,2]
[405859009,1771366250894,-2378.0,0.00017534,2]
[405859010,1771366250904,-1000.0,0.00017534,2]
[405859011,1771366250913,-150.0,0.00017545,2]
[405859012,1771366250922,-1000.0,0.00017561,2]
[405859013,1771366250937,-1000.0,0.00017573,2]
[405859014,1771366250951,-150.0,0.00017581,2]
[405859015,1771366250961,-2378.0,0.00017589,2]
[405859016,1771366250970,-1751.06105486,0.00017589,2]
[405859017,1771366250980,-600.0,0.000176,6]
[405859018,1771366250990,-1000.0,0.00017611,2]
[405859019,1771366251003,-1000.0,0.00017618,2]
[405859020,1771366251012,-1000.0,0.00017621,2]
[405859021,1771366251022,-150.0,0.00017628,2]
[405859022,1771366251031,-350.0,0.00017631,3]
[405859023,1771366251043,-1000.0,0.00017632,2]
[405859024,1771366251052,-1000.0,0.00017633,2]
[405859025,1771366251062,-1000.0,0.00017634,2]
[405859026,1771366251074,-150.0,0.00017635,2]
[405859027,1771366251084,-1042.3192953,0.0001764,2]
[405859028,1771366251093,-1102.68537992,0.0001764,2]
[405859029,1771366251102,-1006.98252844,0.0001764,2]
[405859030,1771366251111,-1100.89573297,0.0001764,2]
[405859031,1771366251120,-1073.51053914,0.0001764,2]
[405859032,1771366251129,-1061.23071862,0.0001764,2]
[405859033,1771366251138,-1014.14421279,0.0001764,2]
[405859034,1771366251148,-1146.00879943,0.0001764,2]
[405859035,1771366251158,-1062.07016694,0.0001764,2]
[405859036,1771366251167,-1086.02440191,0.0001764,2]
[405859037,1771366251176,-1149.43914067,0.0001764,2]
[405859038,1771366251185,-1059.04637808,0.0001764,2]
[405859039,1771366251194,-1034.29825084,0.0001764,2]
[405859040,1771366251204,-1083.67899708,0.0001764,2]
[405859041,1771366251213,-1089.07103995,0.0001764,2]
[405859042,1771366251222,-1001.76166775,0.0001764,2]
[405859043,1771366251232,-1005.31875396,0.0001764,2]
[405859044,1771366251241,-1092.30839933,0.0001764,2]
[405859045,1771366251250,-10846.14923654,0.0001764,2]
[405859046,1771366251260,-1072.86846244,0.0001764,2]
[405859047,1771366251269,-1021.4255756,0.0001764,2]
[405859048,1771366251279,-1117.07808701,0.0001764,2]
[405859049,1771366251288,-1416.39956381,0.0001764,2]
[405859050,1771366251298,-2378.0,0.00017643,2]
[405859051,1771366251307,-1751.06105486,0.00017644,2]
[405859052,1771366251316,-807.0,0.00017644,2]
[405859053,1771366251326,-287.61899177,0.00017647,2]
[405859054,1771366251336,-1000.0,0.00017651,2]
[405859055,1771366251346,-1000.0,0.00017669,2]
[405859056,1771366251356,-1000.0,0.00017691,2]
[405859057,1771366251366,-1000.0,0.00017695,2]
[405859058,1771366251376,-2390.56309185,0.00017698,2]